bitfinex/quotes_BTCUSD_20250124
["timestamp","ask_amount","ask_price","bid_price","bid_amount"]
[1737748766690,0.13737158,105800.0,105790.0,0.12550808]
[1737748768560,0.13737158,105800.0,105790.0,0.26729808]
[1737748768962,0.14207379,105800.0,105790.0,0.26729808]
[1737748769621,0.15207379,105800.0,105790.0,0.26729808]
[1737748769839,0.14207379,105800.0,105790.0,0.26729808]
[1737748771146,0.20960194,105800.0,105790.0,0.12550808]
[1737748771284,0.27713009,105800.0,105790.0,0.12550808]
[1737748772946,0.39747738,105800.0,105790.0,0.0800418]
[1737748773152,0.39747738,105800.0,105790.0,0.0001418]
[1737748773153,0.54747738,105800.0,105790.0,0.0001418]
[1737748773356,0.80004565,105800.0,105790.0,0.0001418]
[1737748773676,0.84704565,105800.0,105790.0,0.0001418]
[1737748773891,0.68008733,105800.0,105790.0,0.0001418]
[1737748775513,0.043,105790.0,105760.0,0.08088427]
[1737748775712,0.24479042,105770.0,105760.0,0.08088427]
[1737748776816,0.24479042,105770.0,105760.0,0.08103226]
[1737748777018,0.141817,105770.0,105760.0,0.08103226]
[1737748778968,0.24479042,105770.0,105760.0,0.08103226]
[1737748779544,0.25382537,105770.0,105760.0,0.08103226]
[1737748783615,0.52417266,105770.0,105760.0,0.00023226]
[1737748793962,0.40382537,105770.0,105760.0,0.08223226]
[1737748799004,0.43382537,105770.0,105760.0,0.08223226]
[1737748802838,0.55417266,105770.0,105760.0,0.08223226]
[1737748803043,0.55417266,105770.0,105760.0,0.00023226]
[1737748804922,0.14183,105760.0,105750.0,0.12235978]
[1737748805102,0.24480342,105760.0,105750.0,0.12235978]
[1737748806265,0.51515071,105760.0,105750.0,0.0773]
[1737748806476,0.314843,105750.0,105740.0,0.0763009]
[1737748806696,0.61813713,105750.0,105740.0,0.07635017]
[1737748807112,0.61813713,105750.0,105740.0,5.017e-05]
[1737748807503,0.66513713,105750.0,105740.0,5.017e-05]
[1737748807949,1.54373713,105750.0,105740.0,5.017e-05]
[1737748808583,1.5682294,105750.0,105740.0,5.017e-05]
[1737748809496,1.54373713,105750.0,105740.0,5.017e-05]
[1737748810541,1.5682294,105750.0,105740.0,5.017e-05]
[1737748810727,1.58679015,105750.0,105740.0,5.017e-05]
[1737748812099,1.59606405,105750.0,105740.0,5.017e-05]
[1737748812301,1.57157178,105750.0,105740.0,5.017e-05]
[1737748813698,1.52457178,105750.0,105740.0,5.017e-05]
[1737748813896,1.55457178,105750.0,105740.0,5.017e-05]
[1737748814619,1.55457178,105750.0,105710.0,8e-07]
[1737748814620,0.301884,105720.0,105710.0,8e-07]
[1737748814829,1.54377813,105720.0,105710.0,0.00049107]
[1737748815438,1.5682704,105720.0,105710.0,0.00049107]
[1737748815643,1.48677813,105720.0,105710.0,0.00049107]
[1737748815861,1.49677813,105720.0,105710.0,0.00049107]
[1737748818416,1.67362484,105720.0,105710.0,7e-08]
[1737748818624,1.62327755,105720.0,105710.0,7e-08]
[1737748819039,1.60327755,105720.0,105710.0,7e-08]
[1737748819483,1.61230479,105720.0,105710.0,7e-08]
[1737748819691,1.56385443,105720.0,105710.0,7e-08]
[1737748819898,1.5347616,105720.0,105710.0,7e-08]
[1737748820319,1.55483562,105720.0,105710.0,0.00014197]
[1737748820523,1.58236086,105720.0,105710.0,0.00014197]
[1737748821771,1.55699196,105720.0,105710.0,0.00014197]
[1737748822180,1.5842192,105720.0,105710.0,0.00014197]
[1737748822631,1.55699196,105720.0,105710.0,0.00014197]
[1737748825107,1.53699196,105720.0,105710.0,0.00014197]
[1737748825317,1.55699196,105720.0,105710.0,0.00014197]
[1737748826433,1.5350596,105720.0,105710.0,0.00014197]
[1737748826563,1.5250596,105720.0,105710.0,0.00014197]
[1737748827778,1.5150596,105720.0,105710.0,0.00014197]
[1737748829725,1.5529086,105720.0,105710.0,0.00014197]
[1737748829934,1.5629086,105720.0,105710.0,0.00014197]
[1737748835911,1.5529086,105720.0,105710.0,0.08344197]
[1737748836122,1.40797895,105720.0,105710.0,0.08344197]
[1737748836362,1.40797895,105720.0,105710.0,0.13034197]
[1737748836554,1.15500553,105720.0,105710.0,0.13034197]
[1737748837038,1.25797895,105720.0,105710.0,0.13034197]
[1737748837650,1.28097895,105720.0,105710.0,0.13034197]
[1737748838713,1.43097895,105720.0,105710.0,0.13034197]
[1737748841611,1.53395237,105720.0,105710.0,0.13034197]
[1737748842236,1.53395237,105720.0,105710.0,0.08344197]
[1737748842439,1.66129966,105720.0,105710.0,0.00014197]
[1737748842645,1.56395237,105720.0,105710.0,0.00014197]
[1737748845127,0.334897,105710.0,105700.0,0.000142]
[1737748845348,0.63819113,105710.0,105700.0,1e-06]
[1737748845570,0.151924,105690.0,105680.0,0.0802418]
[1737748845774,0.151924,105690.0,105670.0,0.0001418]
[1737748845775,0.314937,105680.0,105670.0,0.0001418]
[1737748846014,0.41228429,105680.0,105670.0,0.0001418]
[1737748846212,0.51525771,105680.0,105670.0,0.0001418]
[1737748846442,0.53719007,105680.0,105670.0,0.0001418]
[1737748846770,0.56441731,105680.0,105670.0,0.0001418]
[1737748846980,0.56490943,105680.0,105670.0,0.0001418]
[1737748847220,0.51574983,105680.0,105670.0,0.0001418]
[1737748847492,0.67788285,105680.0,105670.0,0.0001418]
[1737748847724,0.56490943,105680.0,105670.0,0.0001418]
[1737748847949,0.51574983,105680.0,105670.0,0.0001418]
[1737748848400,0.54123107,105680.0,105670.0,0.0001418]
[1737748848636,0.57338618,105680.0,105670.0,0.0001418]
[1737748849079,0.59235742,105680.0,105670.0,0.0001418]
[1737748849328,0.68533084,105680.0,105670.0,0.0001418]
[1737748849526,0.70533084,105680.0,105670.0,0.0001418]
[1737748849811,0.68533084,105680.0,105670.0,0.0001418]
[1737748850052,0.68533084,105680.0,105670.0,8e-07]
[1737748850282,0.76489449,105680.0,105670.0,8e-07]
[1737748850504,0.81981496,105680.0,105670.0,8e-07]
[1737748850714,0.76489449,105680.0,105670.0,8e-07]
[1737748850949,0.63769449,105680.0,105670.0,8e-07]
[1737748851180,0.54472107,105680.0,105670.0,8e-07]
[1737748851438,0.56472107,105680.0,105670.0,8e-07]
[1737748851662,0.54472107,105680.0,105670.0,8e-07]
[1737748851889,0.56472107,105680.0,105670.0,8e-07]
[1737748852386,0.57406014,105680.0,105670.0,8e-07]
[1737748853044,0.55406014,105680.0,105670.0,8e-07]
[1737748853277,0.54406014,105680.0,105670.0,0.0450008]
[1737748853506,1.41266014,105680.0,105670.0,0.0450008]
[1737748853719,0.67364881,105680.0,105670.0,8e-07]
[1737748853951,1.52563356,105680.0,105670.0,8e-07]
[1737748854077,1.42295814,105680.0,105670.0,8e-07]
[1737748854762,1.41295814,105680.0,105670.0,8e-07]
[1737748854917,1.42295814,105680.0,105670.0,8e-07]
[1737748856058,1.45295814,105680.0,105670.0,8e-07]
[1737748857640,0.314951,105670.0,105660.0,0.0764426]
[1737748857872,0.83567171,105670.0,105660.0,0.0764426]
[1737748858382,0.55313971,105670.0,105660.0,0.0764426]
[1737748858589,0.179819,105670.0,105660.0,0.1261426]
[1737748858760,0.28279242,105670.0,105660.0,0.1261426]
[1737748860488,0.179819,105670.0,105660.0,0.1261426]
[1737748861067,0.28279242,105670.0,105660.0,0.1261426]
[1737748861486,0.40313971,105670.0,105660.0,0.1261426]
[1737748863424,0.179819,105670.0,105660.0,0.1261426]
[1737748864810,0.01079012,105680.0,105670.0,0.141951]
[1737748865043,0.15272712,105680.0,105670.0,0.271251]
[1737748865256,0.19058212,105680.0,105670.0,0.271251]
[1737748865404,0.04864512,105680.0,105670.0,0.271251]
[1737748865858,0.01079012,105680.0,105670.0,0.271251]
[1737748866048,0.00079012,105680.0,105670.0,0.271251]
[1737748866224,0.14272712,105680.0,105670.0,0.271251]
[1737748866642,0.14272712,105680.0,105670.0,0.1293]
[1737748867733,0.14272712,105680.0,105670.0,0.271251]
[1737748868333,0.14272712,105680.0,105670.0,0.1293]
[1737748868545,0.14272712,105680.0,105670.0,0.271251]
[1737748869364,0.14272712,105680.0,105670.0,0.1293]
[1737748870506,0.24570054,105680.0,105670.0,0.1293]
[1737748870711,0.36604783,105680.0,105670.0,0.1293]
[1737748871147,0.51604783,105680.0,105670.0,0.1293]
[1737748871355,0.314951,105670.0,105660.0,0.000142]
[1737748871587,0.51527171,105670.0,105660.0,0.000142]
[1737748874339,0.52473285,105670.0,105660.0,0.000142]
[1737748878287,0.52503106,105670.0,105660.0,0.000142]
[1737748882407,0.62800448,105670.0,105660.0,0.000142]
[1737748882608,0.63800448,105670.0,105660.0,0.000142]
[1737748887066,0.6570297,105670.0,105660.0,0.000142]
[1737748887945,0.7446297,105670.0,105660.0,1e-06]
[1737748889618,0.7466297,105670.0,105660.0,1e-06]
[1737748889848,0.7371297,105670.0,105660.0,1e-06]
[1737748890105,0.141964,105660.0,105650.0,8e-07]
[1737748890311,0.38528471,105660.0,105650.0,8e-07]
[1737748890550,0.48825813,105660.0,105650.0,8e-07]
[1737748891966,0.63825813,105660.0,105650.0,8e-07]
[1737748892998,0.61825813,105660.0,105650.0,8e-07]
[1737748893236,0.63825813,105660.0,105650.0,8e-07]
[1737748893861,0.64825813,105660.0,105650.0,8e-07]
[1737748894072,0.63825813,105660.0,105650.0,8e-07]
[1737748894291,0.314978,105650.0,105640.0,6e-07]
[1737748894491,0.66637995,105650.0,105640.0,6e-07]
[1737748895118,0.72317995,105650.0,105640.0,6e-07]
[1737748895324,0.79771337,105650.0,105640.0,6e-07]
[1737748896001,0.292005,105630.0,105620.0,0.0288861]
[1737748896131,0.62829913,105630.0,105620.0,0.0288861]
[1737748896342,0.61829913,105630.0,105620.0,0.0288861]
[1737748897168,0.65667395,105630.0,105620.0,0.0288861]
[1737748898918,0.66667395,105630.0,105620.0,0.0288861]
[1737748899977,0.65667395,105630.0,105620.0,0.0288861]
[1737748900366,0.66577526,105630.0,105620.0,0.0288861]
[1737748900942,0.66577526,105630.0,105620.0,0.0290281]
[1737748901339,0.68477008,105630.0,105620.0,0.0290281]
[1737748902922,0.69477008,105630.0,105620.0,0.0290281]
[1737748903179,0.71477008,105630.0,105620.0,0.0290281]
[1737748903392,0.69477008,105630.0,105620.0,0.0290281]
[1737748903594,0.71477008,105630.0,105620.0,0.0290281]
[1737748904223,0.69477008,105630.0,105620.0,0.0290281]
[1737748910976,0.69470381,105630.0,105620.0,0.0290281]
[1737748911744,0.70306381,105630.0,105620.0,0.0290281]
[1737748912083,0.70336202,105630.0,105620.0,0.0290281]
[1737748914817,0.69500202,105630.0,105620.0,0.0290281]
[1737748919771,0.72500202,105630.0,105620.0,0.0290281]
[1737748920931,0.72500202,105630.0,105620.0,0.1537281]
[1737748922997,0.69500202,105630.0,105620.0,0.1537281]
[1737748923134,0.5590286,105630.0,105620.0,0.1537281]
[1737748923611,0.66200202,105630.0,105620.0,0.1537281]
[1737748923818,0.68500202,105630.0,105620.0,0.1537281]
[1737748924449,0.5211456,105630.0,105620.0,0.1537281]
[1737748924666,0.6051242,105630.0,105620.0,0.1537281]
[1737748924887,0.52515078,105630.0,105620.0,0.1537281]
[1737748925094,0.6281242,105630.0,105620.0,0.1537281]
[1737748927782,0.52515078,105630.0,105620.0,0.1537281]
[1737748930328,0.25480349,105630.0,105620.0,0.1537281]
[1737748930535,0.01079003,105630.0,105620.0,0.2957461]
[1737748930762,0.14279503,105630.0,105620.0,0.2957461]
[1737748930958,0.15279503,105630.0,105620.0,0.2957461]
[1737748931195,0.01079003,105630.0,105620.0,0.2957461]
[1737748931557,0.00079003,105630.0,105620.0,0.2957461]
[1737748931761,0.00079003,105630.0,105620.0,0.39309339]
[1737748932794,0.01,105640.0,105620.0,0.39309339]
[1737748932997,0.01,105640.0,105630.0,0.27455159]
[1737748933373,0.331304,105650.0,105640.0,0.273591]
[1737748933558,0.341304,105650.0,105640.0,0.273591]
[1737748933802,0.151991,105650.0,105640.0,0.273591]
[1737748934010,0.44303905,105660.0,105650.0,0.1316]
[1737748934231,0.42446075,105660.0,105650.0,0.1316]
[1737748934449,0.01,105660.0,105650.0,0.273578]
[1737748935075,0.01,105660.0,105650.0,0.141978]
[1737748935341,0.01,105660.0,105650.0,0.14292436]
[1737748935554,0.01,105660.0,105650.0,0.26712436]
[1737748935750,0.52080921,105670.0,105650.0,0.26712436]
[1737748935751,0.34153221,105670.0,105660.0,0.266164]
[1737748935973,0.34153221,105670.0,105660.0,0.1242]
[1737748936413,0.43450563,105670.0,105660.0,0.1242]
[1737748936961,0.43450563,105670.0,105660.0,0.12424923]
[1737748937551,0.33153221,105670.0,105660.0,0.12424923]
[1737748937773,0.34153221,105670.0,105660.0,0.12424923]
[1737748939796,0.44450563,105670.0,105660.0,0.12424923]
[1737748940781,0.34153221,105670.0,105660.0,0.12424923]
[1737748943166,0.34153221,105670.0,105660.0,0.26621323]
[1737748943368,0.15224921,105670.0,105660.0,0.26621323]
[1737748943590,0.01029821,105670.0,105660.0,0.26621323]
[1737748945740,0.15224921,105670.0,105660.0,0.26621323]
[1737748945919,0.15224921,105670.0,105660.0,0.12424923]
[1737748946664,0.14224921,105670.0,105660.0,0.12424923]
[1737748947000,0.24522263,105670.0,105660.0,0.12424923]
[1737748947532,0.62854334,105670.0,105660.0,4.923e-05]
[1737748947748,0.142005,105630.0,105620.0,0.1539281]
[1737748947962,0.36532571,105630.0,105620.0,0.0290281]
[1737748948183,0.61829913,105630.0,105620.0,0.0290281]
[1737748948404,1.49689913,105630.0,105620.0,0.0290281]
[1737748948649,1.50521913,105630.0,105620.0,0.0290281]
[1737748949102,1.50535867,105630.0,105620.0,0.0290281]
[1737748950713,1.52408726,105630.0,105620.0,0.0290281]
[1737748951136,1.52408726,105630.0,105620.0,0.0191471]
[1737748953151,1.53326882,105630.0,105620.0,0.0191471]
[1737748956225,1.51494882,105630.0,105620.0,0.0191471]
[1737748957422,1.49194882,105630.0,105620.0,0.0191471]
[1737748957885,1.27289952,105630.0,105620.0,0.0191471]
[1737748958082,1.12289952,105630.0,105620.0,0.0990471]
[1737748958843,1.13289952,105630.0,105620.0,0.0990471]
[1737748959058,0.15214454,105630.0,105620.0,0.2410651]
[1737748959259,0.25511796,105630.0,105620.0,0.2891651]
[1737748959466,0.11311296,105630.0,105620.0,0.2891651]
[1737748959673,0.25511796,105630.0,105620.0,0.2891651]
[1737748959877,0.25541575,105630.0,105620.0,0.2891651]
[1737748960681,0.25541575,105630.0,105620.0,0.1471471]
[1737748960889,0.25541575,105630.0,105620.0,0.2891651]
[1737748961568,0.25541575,105630.0,105620.0,0.1471471]
[1737748961803,0.25541575,105630.0,105620.0,0.2891651]
[1737748964321,0.00043733,105630.0,105620.0,0.53651239]
[1737748964530,0.15004913,105650.0,105640.0,0.141991]
[1737748964531,0.01,105650.0,105640.0,0.141991]
[1737748964867,0.01,105660.0,105650.0,0.141978]
[1737748965814,0.62378963,105670.0,105650.0,0.141978]
[1737748965815,0.01029821,105670.0,105660.0,0.222664]
[1737748966012,0.01044611,105670.0,105660.0,0.272064]
[1737748966365,0.00044611,105670.0,105660.0,0.36941129]
[1737748970859,0.00044611,105670.0,105660.0,0.51941129]
[1737748972516,0.000298,105680.0,105670.0,0.269751]
[1737748972723,0.3204,105700.0,105690.0,0.269724]
[1737748972937,0.3204,105700.0,105690.0,0.84015129]
[1737748973343,0.3204,105700.0,105690.0,0.99015129]
[1737748975124,0.3204,105700.0,105690.0,0.84015129]
[1737748975328,0.3204,105700.0,105690.0,0.99015129]
[1737748976968,0.3204,105700.0,105690.0,0.99941075]
[1737748981702,0.462311,105700.0,105690.0,0.84941075]
[1737748981878,0.472311,105700.0,105690.0,0.84941075]
[1737748982087,0.57528442,105700.0,105690.0,0.84015129]
[1737748982295,0.01,105700.0,105690.0,0.84015129]
[1737748982713,0.151911,105700.0,105690.0,0.742804]
[1737748983123,0.15220879,105700.0,105690.0,0.742804]
[1737748983682,0.25518221,105700.0,105690.0,0.55338]
[1737748983879,0.24518221,105700.0,105690.0,0.47308]
[1737748984737,0.01029779,105700.0,105690.0,0.615004]
[1737748984933,0.00029779,105700.0,105690.0,0.79185129]
[1737748985328,0.00029779,105700.0,105690.0,0.84105129]
[1737748986189,0.00029779,105700.0,105690.0,0.85024093]
[1737748986396,0.00029779,105700.0,105690.0,1.00024093]
[1737748988786,0.00029779,105700.0,105690.0,1.00833188]
[1737748991609,0.00029779,105700.0,105690.0,1.02833188]
[1737748991794,0.3204,105710.0,105700.0,0.439611]
[1737748991997,0.32054787,105710.0,105700.0,1.00999829]
[1737748992204,0.32054787,105710.0,105700.0,0.98999829]
[1737748993065,0.32054787,105710.0,105700.0,0.99808924]
[1737748995219,0.32054787,105710.0,105700.0,0.98999829]
[1737748997495,0.32054787,105710.0,105700.0,1.0192964]
[1737748998140,0.32054787,105710.0,105700.0,0.8692964]
[1737748998351,0.32054787,105710.0,105700.0,0.83999829]
[1737748998561,0.01014787,105710.0,105700.0,0.83999829]
[1737748999309,0.01014787,105710.0,105700.0,0.614951]
[1737748999480,0.15204487,105710.0,105700.0,0.614951]
[1737748999706,0.01014787,105710.0,105700.0,0.614951]
[1737749001972,0.01014787,105710.0,105700.0,0.71229829]
[1737749003137,0.15204487,105710.0,105700.0,0.71229829]
[1737749005686,0.14204487,105710.0,105700.0,0.47304]
[1737749005874,0.36536558,105710.0,105700.0,0.47304]
[1737749006860,0.36536558,105710.0,105700.0,0.4731817]
[1737749007070,0.36566316,105710.0,105700.0,0.4731817]
[1737749008089,0.37486286,105710.0,105700.0,0.4731817]
[1737749009601,0.53486286,105710.0,105700.0,0.4731817]
[1737749009821,0.61276286,105710.0,105700.0,0.4731817]
[1737749012073,0.39888944,105710.0,105700.0,0.4731817]
[1737749012272,0.15154215,105710.0,105700.0,0.4731817]
[1737749012578,0.15234245,105710.0,105700.0,0.4731817]
[1737749012913,0.15234245,105710.0,105700.0,0.6150927]
[1737749014516,0.01044545,105710.0,105700.0,0.6150927]
[1737749015121,0.15234245,105710.0,105700.0,0.6150927]
[1737749016644,0.01044545,105710.0,105700.0,0.6150927]
[1737749017751,0.15234245,105710.0,105700.0,0.6150927]
[1737749018426,0.01044545,105710.0,105700.0,0.6150927]
[1737749019435,0.15234245,105710.0,105700.0,0.6150927]
[1737749019997,0.01044545,105710.0,105700.0,0.6150927]
[1737749020922,0.00044545,105710.0,105700.0,0.86243999]
[1737749021128,0.00044545,105710.0,105700.0,0.94113999]
[1737749021714,0.00044545,105710.0,105700.0,0.98803999]
[1737749021858,0.00044545,105710.0,105700.0,1.00803999]
[1737749022068,0.00044545,105710.0,105700.0,1.03743626]
[1737749022638,0.00044545,105710.0,105700.0,1.00803999]
[1737749024209,0.00044545,105710.0,105700.0,1.03742633]
[1737749025214,0.000298,105720.0,105710.0,0.1449]
[1737749025575,0.000298,105720.0,105710.0,0.85807994]
[1737749025822,0.000298,105720.0,105710.0,0.85713429]
[1737749026021,0.000298,105720.0,105710.0,0.88650583]
[1737749026425,0.000298,105720.0,105710.0,0.85713429]
[1737749028367,0.000298,105720.0,105710.0,1.01545429]
[1737749029117,0.000298,105720.0,105710.0,1.04480798]
[1737749029316,0.000298,105720.0,105710.0,1.01545429]
[1737749031484,0.000298,105720.0,105710.0,1.01559599]
[1737749032895,0.000298,105720.0,105710.0,1.03311482]
[1737749035872,0.000298,105720.0,105710.0,1.02479482]
[1737749039510,0.000298,105720.0,105710.0,1.00479482]
[1737749039928,0.000298,105720.0,105710.0,1.02479482]
[1737749041723,0.000298,105720.0,105710.0,0.85479482]
[1737749042276,0.000298,105720.0,105710.0,1.00479482]
[1737749042676,0.000298,105720.0,105710.0,1.02479482]
[1737749043812,0.000298,105720.0,105710.0,1.01668073]
[1737749048898,0.000298,105720.0,105710.0,1.04607597]
[1737749049113,0.000298,105720.0,105710.0,1.01668073]
[1737749049542,0.000298,105720.0,105710.0,1.04608553]
[1737749049778,0.000298,105720.0,105710.0,1.01668073]
[1737749050481,0.000298,105720.0,105710.0,1.04608588]
[1737749051224,0.000298,105720.0,105710.0,1.01668073]
[1737749051566,0.000298,105720.0,105710.0,1.04610286]
[1737749053139,0.000298,105720.0,105710.0,1.02610286]
[1737749054536,0.000298,105720.0,105710.0,1.04610286]
[1737749055048,0.000298,105720.0,105710.0,1.02610286]
[1737749057075,0.000298,105720.0,105710.0,0.83080286]
[1737749057375,0.000298,105720.0,105710.0,0.75120286]
[1737749057615,0.010298,105720.0,105710.0,0.72178073]
[1737749057788,0.086998,105720.0,105710.0,0.72178073]
[1737749059547,0.010298,105720.0,105710.0,0.72178073]
[1737749059759,0.000298,105720.0,105710.0,0.87178073]
[1737749060188,0.000298,105720.0,105710.0,0.90125213]
[1737749060425,0.000298,105720.0,105710.0,0.87178073]
[1737749065674,0.010298,105720.0,105710.0,0.87178073]
[1737749065814,0.010298,105720.0,105710.0,0.72178073]
[1737749071782,0.010298,105720.0,105710.0,0.72996391]
[1737749079342,0.32325542,105720.0,105710.0,0.48131488]
[1737749080659,0.32325542,105720.0,105710.0,0.4731317]
[1737749083085,0.220282,105720.0,105710.0,0.4731317]
[1737749083308,0.142182,105720.0,105710.0,0.4731317]
[1737749087872,0.24515542,105720.0,105710.0,0.4731317]
[1737749089242,0.142182,105720.0,105710.0,0.4731317]
[1737749095555,0.142182,105720.0,105710.0,0.6150287]
[1737749095752,0.010298,105720.0,105710.0,0.84187599]
[1737749095936,0.152182,105720.0,105710.0,0.84187599]
[1737749097375,0.010298,105720.0,105710.0,0.84187599]
[1737749098018,0.152182,105720.0,105710.0,0.84187599]
[1737749099716,0.010298,105720.0,105710.0,0.84187599]
[1737749099953,0.152182,105720.0,105710.0,0.84187599]
[1737749102204,0.142182,105720.0,105710.0,0.5539317]
[1737749102424,0.24515542,105720.0,105710.0,0.4731317]
[1737749102830,0.142182,105720.0,105710.0,0.4731317]
[1737749103631,0.24515542,105720.0,105710.0,0.4731317]
[1737749104713,0.142182,105720.0,105710.0,0.4731317]
[1737749104868,0.24515542,105720.0,105710.0,0.4731317]
[1737749107396,0.152182,105720.0,105710.0,0.6150287]
[1737749107644,0.142182,105720.0,105710.0,0.5558317]
[1737749107885,0.152182,105720.0,105710.0,0.5558317]
[1737749110556,0.142182,105720.0,105710.0,0.4731317]
[1737749110693,0.24515542,105720.0,105710.0,0.4731317]
[1737749110908,0.32565542,105720.0,105710.0,0.4731317]
[1737749114694,0.142182,105720.0,105710.0,0.4731317]
[1737749119151,0.152182,105720.0,105710.0,0.5559317]
[1737749119359,0.152182,105720.0,105710.0,0.6978287]
[1737749119560,0.152182,105720.0,105710.0,0.5559317]
[1737749120301,0.152182,105720.0,105710.0,0.6034317]
[1737749120757,0.142182,105720.0,105710.0,0.6034317]
[1737749121544,0.152182,105720.0,105710.0,0.6034317]
[1737749121750,0.152182,105720.0,105710.0,0.7453287]
[1737749122568,0.152182,105720.0,105710.0,0.75352263]
[1737749123139,0.010298,105720.0,105710.0,0.75352263]
[1737749129197,0.152182,105720.0,105710.0,0.75352263]
[1737749129406,0.24515542,105720.0,105710.0,0.48132563]
[1737749130047,0.36550271,105720.0,105710.0,0.48132563]
[1737749130672,0.46847613,105720.0,105710.0,0.48132563]
[1737749131049,0.54927613,105720.0,105710.0,0.48132563]
[1737749131289,0.74907613,105720.0,105710.0,0.4731317]
[1737749131451,0.455497,105710.0,105700.0,0.0001417]
[1737749131710,0.65581771,105710.0,105700.0,0.0001417]
[1737749132669,0.75879113,105710.0,105700.0,0.0001417]
[1737749134007,0.76865615,105710.0,105700.0,0.0001417]
[1737749135742,0.76895394,105710.0,105700.0,0.0001417]
[1737749136734,0.77797176,105710.0,105700.0,0.0001417]
[1737749136979,0.67499834,105710.0,105700.0,0.0001417]
[1737749137222,0.77797176,105710.0,105700.0,0.0001417]
[1737749138330,0.68499834,105710.0,105700.0,0.0001417]
[1737749140198,0.67499834,105710.0,105700.0,0.0001417]
[1737749140353,0.68499834,105710.0,105700.0,0.0001417]
[1737749140557,0.67499834,105710.0,105700.0,0.0001417]
[1737749140784,0.68499834,105710.0,105700.0,0.0001417]
[1737749141316,0.52139834,105710.0,105700.0,0.0001417]
[1737749141519,0.3425155,105710.0,105700.0,0.0001417]
[1737749141723,0.3655155,105710.0,105700.0,0.0001417]
[1737749141932,0.5155155,105710.0,105700.0,0.0001417]
[1737749142577,0.5533655,105710.0,105700.0,0.0001417]
[1737749144620,0.01,105670.0,105630.0,0.35213672]
[1737749144906,0.10297342,105640.0,105630.0,0.12418967]
[1737749145089,0.25496442,105640.0,105630.0,0.12418967]
[1737749145303,0.24496442,105640.0,105630.0,0.12418967]
[1737749147181,0.23357042,105640.0,105630.0,0.12418967]
[1737749148175,0.23357042,105640.0,105630.0,0.07528967]
[1737749150047,0.151991,105640.0,105630.0,0.26629467]
[1737749150267,0.63359842,105650.0,105630.0,0.45562667]
[1737749150480,0.63359842,105650.0,105630.0,0.45562267]
[1737749150697,0.63359842,105650.0,105630.0,0.64495467]
[1737749150931,0.63359842,105650.0,105630.0,0.64496267]
[1737749151128,0.341305,105650.0,105640.0,0.219991]
[1737749151371,0.39919506,105660.0,105640.0,0.219991]
[1737749151372,0.63312077,105660.0,105640.0,0.219991]
[1737749151586,0.341273,105660.0,105650.0,0.267578]
[1737749151799,0.44424642,105660.0,105650.0,0.1256]
[1737749153138,0.44424642,105660.0,105650.0,0.12654646]
[1737749153351,0.44424642,105660.0,105650.0,0.1256]
[1737749155801,0.341273,105660.0,105650.0,0.1256]
[1737749156341,0.44424642,105660.0,105650.0,0.1256]
[1737749158642,0.44454442,105660.0,105650.0,0.1256]
[1737749159540,0.341571,105660.0,105650.0,0.1256]
[1737749160343,0.341571,105660.0,105650.0,0.26852446]
[1737749160344,0.000298,105660.0,105650.0,0.26852446]
[1737749160681,0.000298,105660.0,105650.0,0.267578]
[1737749162040,0.25523542,105660.0,105650.0,0.267578]
[1737749162242,0.25523542,105660.0,105650.0,0.1256]
[1737749162423,0.152262,105660.0,105650.0,0.267578]
[1737749162626,0.010298,105660.0,105650.0,0.267578]
[1737749163073,0.152262,105660.0,105650.0,0.267578]
[1737749163931,0.000298,105660.0,105650.0,0.36492529]
[1737749166758,0.000298,105660.0,105650.0,0.83816529]
[1737749167856,0.320698,105660.0,105650.0,0.83816529]
[1737749168084,0.320698,105660.0,105650.0,0.99766616]
[1737749172320,0.472662,105660.0,105650.0,0.59884]
[1737749172533,0.24523542,105660.0,105650.0,0.47324]
[1737749172949,0.34258271,105660.0,105650.0,0.47324]
[1737749175350,0.74615613,105660.0,105650.0,0.47324]
[1737749175579,0.75615613,105660.0,105650.0,0.47324]
[1737749176460,0.77615613,105660.0,105650.0,0.47324]
[1737749177932,0.72315613,105660.0,105650.0,0.47324]
[1737749178124,0.74615613,105660.0,105650.0,0.47324]
[1737749182144,0.75615613,105660.0,105650.0,0.47324]
[1737749182357,0.77615613,105660.0,105650.0,0.47324]
[1737749182955,0.77615613,105660.0,105650.0,0.44919329]
[1737749183770,0.76615613,105660.0,105650.0,0.44919329]
[1737749183922,0.86350342,105660.0,105650.0,0.35454329]
[1737749184133,0.76615613,105660.0,105650.0,0.33561329]
[1737749184354,0.74615613,105660.0,105650.0,0.31668329]
[1737749184553,0.194978,105650.0,105640.0,0.0001419]
[1737749184763,0.49827213,105650.0,105640.0,0.0001419]
[1737749185135,0.72727213,105650.0,105640.0,0.0001419]
[1737749185898,0.74641913,105650.0,105640.0,0.0001419]
[1737749186107,0.63344571,105650.0,105640.0,0.0001419]
[1737749186233,0.61344571,105650.0,105640.0,0.0001419]
[1737749186433,0.63344571,105650.0,105640.0,0.0001419]
[1737749188390,0.64273269,105650.0,105640.0,0.0001419]
[1737749188630,1.61430611,105650.0,105640.0,0.0001419]
[1737749189027,1.62430611,105650.0,105640.0,0.0001419]
[1737749190354,1.7216534,105650.0,105640.0,0.0001419]
[1737749190561,1.62430611,105650.0,105640.0,0.0001419]
[1737749190765,1.60430611,105650.0,105640.0,0.0001419]
[1737749190974,1.62430611,105650.0,105640.0,0.0001419]
[1737749191383,1.50133269,105650.0,105640.0,0.0001419]
[1737749191542,1.52133269,105650.0,105640.0,0.0001419]
[1737749191896,1.62430611,105650.0,105640.0,0.0001419]
[1737749192504,1.64315309,105650.0,105640.0,0.0001419]
[1737749193581,1.74050038,105650.0,105640.0,0.0001419]
[1737749193829,1.64315309,105650.0,105640.0,0.0001419]
[1737749194444,0.77455309,105650.0,105640.0,0.0001419]
[1737749198126,0.67555309,105650.0,105640.0,0.0001419]
[1737749198434,0.69555309,105650.0,105640.0,0.0001419]
[1737749198634,0.67555309,105650.0,105640.0,0.0001419]
[1737749199202,0.69555309,105650.0,105640.0,0.0001419]
[1737749199407,0.69555309,105650.0,105640.0,9e-07]
[1737749201259,0.68555309,105650.0,105640.0,9e-07]
[1737749202732,0.69555309,105650.0,105640.0,9e-07]
[1737749204200,0.69585109,105650.0,105640.0,9e-07]
[1737749204930,0.79319838,105650.0,105640.0,9e-07]
[1737749205756,0.69585109,105650.0,105640.0,9e-07]
[1737749208089,0.59287767,105650.0,105640.0,9e-07]
[1737749208298,0.70429109,105650.0,105640.0,9e-07]
[1737749212956,0.56287767,105650.0,105640.0,0.0763009]
[1737749213213,0.53987767,105650.0,105640.0,0.0763009]
[1737749213420,0.53987767,105650.0,105640.0,0.1249009]
[1737749213658,0.56287767,105650.0,105640.0,0.1249009]